fUST/lending_fUST_20241225
["ID","MTS","AMOUNT","RATE_DAILY","PERIOD"]
[346540199,1735060037662,-624.88070132,0.00013641,2]
[346540200,1735060041098,-575.11929868,0.00013641,2]
[346540201,1735060041119,-7.74301376,0.00013667,2]
[346540202,1735060050090,-194.0,0.00013515,2]
[346540203,1735060050113,-194.0,0.00013515,2]
[346540204,1735060050135,-194.0,0.00013515,2]
[346540205,1735060050156,-194.0,0.00013515,2]
[346540206,1735060050177,-141.47828414,0.00013515,2]
[346540207,1735060184432,17630.75002473,0.00023,120]
[346540301,1735060238914,-52.52171586,0.00013515,2]
[346540302,1735060238924,-194.0,0.00013515,2]
[346540303,1735060238934,-210.58,0.00013515,2]
[346540304,1735060238943,-180.44,0.00013515,2]
[346540305,1735060238953,-165.44375967,0.00013598,2]
[346540306,1735060238964,-156.92610716,0.00013667,2]
[346540307,1735060238974,-300.0,0.00013696,2]
[346540308,1735060238983,-300.0,0.00013696,2]
[346540309,1735060238994,-1144.2843535,0.00013697,2]
[346540310,1735060239003,-1218.0,0.00013697,2]
[346540311,1735060239013,-334.56962991,0.00013697,2]
[346540312,1735060239022,-610.86327166,0.00013697,2]
[346540313,1735060239032,-151.0,0.00013698,2]
[346540314,1735060239041,-4856.06544558,0.00013698,2]
[346540315,1735060239051,-151.0,0.00013698,2]
[346540316,1735060239061,-151.0,0.00013698,2]
[346540317,1735060239071,-191.183964,0.00013698,2]
[346540318,1735060239081,-268.445039,0.00013698,2]
[346540319,1735060239092,-268.445039,0.00013698,2]
[346540320,1735060239102,-151.0,0.00013698,2]
[346540321,1735060239111,-138.47768906,0.00013698,2]
[346540322,1735060239123,-12.52231094,0.00013698,2]
[346540323,1735060239133,-151.0,0.00013698,2]
[346540324,1735060239142,-373.52240324,0.00013698,2]
[346540332,1735060240789,-126.47759676,0.00013698,2]
[346540333,1735060240800,-151.0,0.00013698,2]
[346540334,1735060240810,-150.15904786,0.00013698,2]
[346540335,1735060240846,-349.84095214,0.00013698,2]
[346540336,1735060240856,-500.0,0.00013698,2]
[346540337,1735060240865,-500.0,0.00013698,2]
[346540338,1735060240875,-500.0,0.00013698,2]
[346540339,1735060240887,-500.0,0.00013698,2]
[346540340,1735060240898,-151.0,0.00013698,2]
[346540341,1735060240907,-151.0,0.00013698,2]
[346540342,1735060240916,-500.0,0.00013698,2]
[346540343,1735060240927,-500.0,0.00013698,2]
[346540344,1735060240937,-539.06830014,0.00013698,2]
[346540345,1735060240947,-500.0,0.00013698,2]
[346540346,1735060240957,-153.085295,0.00013698,2]
[346540347,1735060240968,-500.0,0.00013698,2]
[346540348,1735060240978,-45.28103788,0.00013698,2]
[346540349,1735060240989,-175.54028112,0.00013698,2]
[346540350,1735060240999,-500.0,0.00013698,2]
[346540351,1735060241008,-506.51779273,0.00013698,2]
[346540352,1735060241017,-220.821319,0.00013698,2]
[346540353,1735060241027,-203.93964182,0.00013698,2]
[346540383,1735060243763,-296.06035818,0.00013698,2]
[346540384,1735060243773,-220.821319,0.00013698,2]
[346540385,1735060243782,-220.821319,0.00013698,2]
[346540386,1735060243792,-500.0,0.00013698,2]
[346540387,1735060243802,-211.317381,0.00013698,2]
[346540388,1735060243970,-500.0,0.00013698,2]
[346540389,1735060243980,-214.53609769,0.00013698,2]
[346540390,1735060243989,-151.0,0.00013698,2]
[346540391,1735060243999,-151.0,0.00013698,2]
[346540392,1735060244009,-500.0,0.00013698,2]
[346540393,1735060244018,-503.51,0.00013698,2]
[346540394,1735060244027,-500.0,0.00013698,2]
[346540395,1735060244037,-500.0,0.00013698,2]
[346540396,1735060244046,-151.0,0.00013698,2]
[346540397,1735060244056,-151.0,0.00013698,2]
[346540398,1735060244065,-49.30352517,0.00013698,2]
[346540399,1735060244083,-450.69647483,0.00013698,2]
[346540400,1735060244092,-286.170708,0.00013698,2]
[346540401,1735060244101,-500.0,0.00013698,2]
[346540402,1735060244111,-500.0,0.00013698,2]
[346540403,1735060244120,-713.11348587,0.00013698,2]
[346540404,1735060244131,-215.35651413,0.00013698,2]
[346540405,1735060244141,-500.0,0.00013698,2]
[346540406,1735060244152,-548.31,0.00013698,2]
[346540407,1735060244162,-573.28,0.00013698,2]
[346540408,1735060244171,-500.0,0.00013698,2]
[346540409,1735060244180,-500.0,0.00013698,2]
[346540410,1735060244189,-500.0,0.00013698,2]
[346540411,1735060244199,-2540.39,0.00013698,2]
[346540412,1735060244208,-1565.26,0.00013698,2]
[346540413,1735060244217,-72.13943815,0.00013698,2]
[346540451,1735060245904,-64.76247916,0.00013698,2]
[346540452,1735060245916,-182.55003069,0.00013698,2]
[346540453,1735060245927,-150.80496881,0.00013698,2]
[346540454,1735060245940,-168.64697919,0.00013698,2]
[346540455,1735060245950,-103.47096595,0.00013698,2]
[346540456,1735060245963,-49.49689505,0.00013698,2]
[346540457,1735060245973,-308.96615095,0.00013698,2]
[346540458,1735060245983,-500.0,0.00013698,2]
[346540459,1735060245993,-504.4706597,0.00013698,2]
[346540460,1735060246006,-319.451948,0.00013698,2]
[346540461,1735060246016,-319.451948,0.00013698,2]
[346540462,1735060246025,-500.0,0.00013698,2]
[346540463,1735060246038,-500.0,0.00013698,2]
[346540464,1735060246047,-3550.8073988,0.00013698,2]
[346540465,1735060246270,-913.6226012,0.00013698,2]
[346540466,1735060246280,-60.33037423,0.00013698,2]
[346540468,1735060745722,31742.57168077,0.00023,120]
[346540469,1735060745754,453212.42831923,0.00023,120]
[346540470,1735060814995,491.76654829,0.00013,5]
[346540472,1735060832038,160.0,0.00021855,120]
[346540473,1735061249116,-165.44375967,0.000129,2]
[346540474,1735061249140,-298.41777826,0.0001292,2]
[346540475,1735061249163,-300.0,0.00012993,2]
[346540476,1735061249184,-300.0,0.00012993,2]
[346540477,1735061249208,-377.88629048,0.00012994,2]
[346540478,1735061314118,2339.31947653,0.0002,120]
[346540480,1735061345126,-359.2868429,0.00012,2]
[346540481,1735061410710,7268.37,0.00023,120]
[346540550,1735061435464,-238.7342226,0.0001292,2]
[346540552,1735061435474,-300.0,0.00012993,2]
[346540554,1735061435484,-300.0,0.00012993,2]
[346540556,1735061435494,-4431.88803015,0.00012994,2]
[346540584,1735061437965,-5720.22567936,0.00012994,2]
[346540585,1735061437977,-500.0,0.00012999,2]
[346540586,1735061437988,-174.26157438,0.00012999,2]
[346540587,1735061438000,-500.0,0.00012999,2]
[346540588,1735061438012,-500.0,0.00012999,2]
[346540589,1735061438023,-500.0,0.00012999,2]
[346540590,1735061438034,-500.0,0.00012999,2]
[346540591,1735061438046,-500.0,0.00012999,2]
[346540592,1735061438056,-500.0,0.00012999,2]
[346540593,1735061438066,-447.54638947,0.00012999,2]
[346540594,1735061438077,-500.0,0.00012999,2]
[346540595,1735061438086,-500.0,0.00012999,2]
[346540596,1735061438096,-234.41620045,0.00012999,2]
[346540597,1735061438106,-500.0,0.00012999,2]
[346540598,1735061438116,-217.98909481,0.00012999,2]
[346540599,1735061438126,-500.0,0.00012999,2]
[346540600,1735061438136,-494.51999569,0.00012999,2]
[346540601,1735061438147,-500.0,0.00012999,2]
[346540603,1735061438157,-500.0,0.00012999,2]
[346540605,1735061438168,-627.61752147,0.00012999,2]
[346540607,1735061438178,-500.0,0.00012999,2]
[346540609,1735061438188,-500.0,0.00012999,2]
[346540611,1735061438199,-500.0,0.00012999,2]
[346540613,1735061438211,-500.0,0.00012999,2]
[346540615,1735061438222,-500.0,0.00012999,2]
[346540618,1735061438234,-500.0,0.00012999,2]
[346540620,1735061438246,-500.0,0.00012999,2]
[346540622,1735061438257,-500.0,0.00012999,2]
[346540623,1735061438272,-500.0,0.00012999,2]
[346540624,1735061438281,-500.0,0.00012999,2]
[346540625,1735061438290,-500.0,0.00012999,2]
[346540626,1735061438303,-500.0,0.00012999,2]
[346540627,1735061438315,-500.0,0.00012999,2]
[346540628,1735061438326,-500.0,0.00012999,2]
[346540629,1735061438336,-328.94234458,0.00012999,2]
[346540630,1735061438346,-500.0,0.00012999,2]
[346540631,1735061438356,-500.0,0.00012999,2]
[346540632,1735061438366,-327.23774883,0.00012999,2]
[346540633,1735061438376,-500.0,0.00012999,2]
[346540634,1735061438385,-500.0,0.00012999,2]
[346540635,1735061438395,-500.0,0.00012999,2]
[346540636,1735061438405,-500.0,0.00012999,2]
[346540637,1735061438416,-500.0,0.00012999,2]
[346540638,1735061438427,-500.0,0.00012999,2]
[346540639,1735061438438,-500.0,0.00012999,2]
[346540640,1735061438448,-500.0,0.00012999,2]
[346540641,1735061438459,-500.0,0.00012999,2]
[346540642,1735061438469,-500.0,0.00012999,2]
[346540643,1735061438479,-500.0,0.00012999,2]
[346540644,1735061438488,-500.0,0.00012999,2]
[346540645,1735061438498,-500.0,0.00012999,2]
[346540646,1735061438508,-500.0,0.00012999,2]
[346540647,1735061438517,-500.0,0.00012999,2]
[346540648,1735061438527,-500.0,0.00012999,2]
[346540649,1735061438536,-500.0,0.00012999,2]
[346540650,1735061438545,-500.0,0.00012999,2]
[346540651,1735061438554,-500.0,0.00012999,2]
[346540652,1735061438564,-500.0,0.00012999,2]
[346540653,1735061438573,-500.0,0.00012999,2]
[346540654,1735061438582,-500.0,0.00012999,2]
[346540655,1735061438591,-500.0,0.00012999,2]
[346540656,1735061438601,-500.0,0.00012999,2]
[346540657,1735061438611,-500.0,0.00012999,2]
[346540658,1735061438621,-500.0,0.00012999,2]
[346540659,1735061438631,-500.0,0.00012999,2]
[346540660,1735061438640,-477.65221631,0.00012999,2]
[346540661,1735061438650,-500.0,0.00012999,2]
[346540662,1735061438660,-500.0,0.00012999,2]
[346540663,1735061438669,-500.0,0.00012999,2]
[346540664,1735061438679,-500.0,0.00012999,2]
[346540665,1735061438689,-500.0,0.00012999,2]
[346540666,1735061438698,-500.0,0.00012999,2]
[346540667,1735061438709,-500.0,0.00012999,2]
[346540668,1735061438719,-500.0,0.00012999,2]
[346540669,1735061438729,-500.0,0.00012999,2]
[346540670,1735061438739,-500.0,0.00012999,2]
[346540671,1735061438749,-22264.33599512,0.00013,2]
[346540672,1735061438762,-20085.33891597,0.00013,2]
[346540673,1735061438774,-404.75567804,0.00013,2]
[346540674,1735061438786,-7697.32983,0.00013,2]
[346540688,1735061440094,-2214.53495664,0.00013,2]
[346540691,1735061440162,-1609.96346841,0.00013,2]
[346540692,1735061440178,-24120.46036397,0.00013,2]
[346540693,1735061440571,-2566.80552559,0.00013,2]
[346540717,1735061443077,-1110.0500002,0.00013,2]
[346540734,1735061446171,-50556.44157228,0.00013,2]
[346540735,1735061446181,-291.895,0.0001302,2]
[346540736,1735061446192,-238.73422257,0.0001309,2]
[346540737,1735061446202,-238.73422257,0.00013259,2]
[346540738,1735061446214,-238.73422257,0.00013429,2]
[346540739,1735061446224,-238.73422257,0.00013598,2]
[346540740,1735061446234,-666.0,0.00013598,2]
[346540741,1735061446244,-500.0,0.00013599,2]
[346540742,1735061446254,-265.47561296,0.00013599,2]
[346540743,1735061446265,-500.0,0.00013599,2]
[346540744,1735061446277,-244.61190401,0.00013599,2]
[346540745,1735061446286,-500.0,0.00013599,2]
[346540746,1735061446296,-500.0,0.00013599,2]
[346540747,1735061446307,-120569.19580952,0.000136,2]
[346540748,1735061446316,-153.0,0.000136,2]
[346540749,1735061446325,-153.0,0.000136,2]
[346540750,1735061446334,-214.1393056,0.000136,2]
[346540751,1735061446344,-702.259399,0.000136,2]
[346540752,1735061446354,-153.4013351,0.000136,2]
[346540753,1735061446363,-323.7670891,0.000136,2]
[346540754,1735061446372,-154.2855774,0.000136,2]
[346540755,1735061446381,-157.433088,0.000136,2]
[346540756,1735061446390,-308.1094375,0.000136,2]
[346540757,1735061446400,-10569.8573204,0.000136,2]
[346540758,1735061446409,-152.0,0.00013638,2]
[346540759,1735061446418,-500.0,0.00013673,2]
[346540760,1735061446428,-317.38200438,0.00013673,2]
[346540761,1735061446437,-500.0,0.00013673,2]
[346540762,1735061446447,-500.0,0.00013673,2]
[346540763,1735061446457,-500.0,0.00013673,2]
[346540764,1735061446466,-500.0,0.00013673,2]
[346540765,1735061446476,-500.0,0.00013673,2]
[346540766,1735061446485,-633.38517191,0.00013673,2]
[346540767,1735061446494,-160.82411584,0.00013673,2]
[346540768,1735061446504,-500.0,0.00013673,2]
[346540769,1735061446513,-500.0,0.00013673,2]
[346540770,1735061446523,-237.92889278,0.00013673,2]
[346540771,1735061446532,-500.0,0.00013673,2]
[346540772,1735061446542,-196.99306343,0.00013697,2]
[346540773,1735061446552,-530.71006514,0.00013698,2]
[346540774,1735061446561,-151.0,0.00013698,2]
[346540775,1735061446571,-151.0,0.00013698,2]
[346540776,1735061446580,-151.0,0.00013698,2]
[346540777,1735061446590,-151.0,0.00013698,2]
[346540778,1735061446599,-151.0,0.00013698,2]
[346540779,1735061446609,-151.0,0.00013698,2]
[346540780,1735061446618,-500.0,0.00013698,2]
[346540781,1735061446627,-151.0,0.00013698,2]
[346540782,1735061446637,-151.0,0.00013698,2]
[346540783,1735061446647,-151.0,0.00013698,2]
[346540784,1735061446656,-151.0,0.00013698,2]
[346540785,1735061446666,-151.0,0.00013698,2]
[346540786,1735061446675,-154.178702,0.00013698,2]
[346540787,1735061446684,-500.0,0.00013698,2]
[346540788,1735061446694,-500.0,0.00013698,2]
[346540789,1735061446704,-500.0,0.00013698,2]
[346540790,1735061446714,-500.0,0.00013698,2]
[346540791,1735061446723,-151.0,0.00013698,2]
[346540792,1735061446733,-500.0,0.00013698,2]
[346540793,1735061446742,-151.0,0.00013698,2]
[346540794,1735061446751,-151.0,0.00013698,2]
[346540795,1735061446761,-151.0,0.00013698,2]
[346540796,1735061446770,-151.0,0.00013698,2]
[346540797,1735061446779,-151.0,0.00013698,2]
[346540798,1735061446789,-581.68,0.00013698,2]
[346540799,1735061446798,-151.0,0.00013698,2]
[346540800,1735061446807,-151.0,0.00013698,2]
[346540801,1735061446817,-151.0,0.00013698,2]
[346540802,1735061446826,-583.7,0.00013698,2]
[346540803,1735061446835,-151.0,0.00013698,2]
[346540804,1735061446844,-151.0,0.00013698,2]
[346540805,1735061446853,-151.0,0.00013698,2]
[346540806,1735061446862,-500.0,0.00013698,2]
[346540807,1735061446871,-151.0,0.00013698,2]
[346540808,1735061446881,-254.295573,0.00013698,2]
[346540809,1735061446891,-151.0,0.00013698,2]
[346540810,1735061446900,-151.0,0.00013698,2]
[346540811,1735061446910,-500.0,0.00013698,2]
[346540812,1735061446920,-500.0,0.00013698,2]
[346540813,1735061446930,-371.900366,0.00013698,2]
[346540814,1735061446941,-371.900366,0.00013698,2]
[346540815,1735061446951,-371.900366,0.00013698,2]
[346540816,1735061446962,-371.900366,0.00013698,2]
[346540817,1735061446971,-371.900366,0.00013698,2]
[346540818,1735061446980,-500.0,0.00013698,2]
[346540819,1735061446990,-371.900366,0.00013698,2]
[346540820,1735061446999,-371.900366,0.00013698,2]
[346540821,1735061447009,-371.900366,0.00013698,2]
[346540822,1735061447018,-500.0,0.00013698,2]
[346540823,1735061447028,-371.900366,0.00013698,2]
[346540824,1735061447037,-371.900366,0.00013698,2]
[346540825,1735061447046,-371.900366,0.00013698,2]
[346540826,1735061447056,-500.92148755,0.00013698,2]
[346540827,1735061447066,-371.900366,0.00013698,2]
[346540828,1735061447267,-371.900366,0.00013698,2]
[346540829,1735061447278,-371.900366,0.00013698,2]
[346540830,1735061447288,-500.0,0.00013698,2]
[346540831,1735061447298,-371.900366,0.00013698,2]
[346540832,1735061447308,-508.59994683,0.00013698,2]
[346540833,1735061447319,-151.0,0.00013698,2]
[346540834,1735061447329,-371.900366,0.00013698,2]
[346540835,1735061447339,-151.0,0.00013698,2]
[346540836,1735061447349,-371.900366,0.00013698,2]
[346540837,1735061447359,-371.900366,0.00013698,2]
[346540838,1735061447369,-151.0,0.00013698,2]
[346540839,1735061447378,-151.0,0.00013698,2]
[346540840,1735061447388,-151.0,0.00013698,2]
[346540841,1735061447397,-151.0,0.00013698,2]
[346540842,1735061447407,-151.0,0.00013698,2]
[346540843,1735061447416,-243.785954,0.00013698,2]
[346540844,1735061447426,-500.0,0.00013698,2]
[346540845,1735061447435,-500.0,0.00013698,2]
[346540846,1735061447445,-500.0,0.00013698,2]
[346540847,1735061447454,-500.0,0.00013698,2]
[346540848,1735061447465,-500.0,0.00013698,2]
[346540849,1735061447475,-500.0,0.00013698,2]
[346540850,1735061447485,-500.0,0.00013698,2]
[346540851,1735061447494,-500.0,0.00013698,2]
[346540852,1735061447505,-151.0,0.00013698,2]
[346540853,1735061447515,-587.48477502,0.00013698,2]
[346540854,1735061447524,-151.0,0.00013698,2]
[346540855,1735061447535,-151.0,0.00013698,2]
[346540856,1735061447544,-151.0,0.00013698,2]
[346540857,1735061447554,-501.49543745,0.00013698,2]
[346540858,1735061447563,-151.0,0.00013698,2]
[346540859,1735061447572,-151.0,0.00013698,2]
[346540860,1735061447582,-500.0,0.00013698,2]
[346540861,1735061447591,-227.357384,0.00013698,2]
[346540862,1735061447601,-500.0,0.00013698,2]
[346540863,1735061447611,-500.0,0.00013698,2]
[346540864,1735061447620,-500.0,0.00013698,2]
[346540865,1735061447630,-255.561558,0.00013698,2]
[346540866,1735061447639,-500.0,0.00013698,2]
[346540867,1735061447650,-500.0,0.00013698,2]
[346540868,1735061447660,-500.0,0.00013698,2]
[346540869,1735061447669,-500.0,0.00013698,2]
[346540870,1735061447679,-500.0,0.00013698,2]
[346540871,1735061447689,-500.0,0.00013698,2]
[346540872,1735061447699,-151.0,0.00013698,2]
[346540873,1735061447711,-151.0,0.00013698,2]
[346540874,1735061447720,-500.0,0.00013698,2]
[346540875,1735061447730,-500.0,0.00013698,2]
[346540876,1735061447740,-659.45,0.00013698,2]
[346540877,1735061447749,-500.0,0.00013698,2]
[346540878,1735061447759,-500.0,0.00013698,2]
[346540879,1735061447769,-500.0,0.00013698,2]
[346540880,1735061447779,-500.0,0.00013698,2]
[346540881,1735061447789,-508.80511178,0.00013698,2]
[346540882,1735061447798,-559.52565334,0.00013698,2]
[346540883,1735061447808,-500.0,0.00013698,2]
[346540884,1735061447817,-151.0,0.00013698,2]
[346540885,1735061447826,-151.0,0.00013698,2]
[346540886,1735061447836,-151.0,0.00013698,2]
[346540887,1735061447845,-151.0,0.00013698,2]
[346540888,1735061447855,-151.0,0.00013698,2]
[346540889,1735061447865,-152.644677,0.00013698,2]
[346540890,1735061447874,-500.0,0.00013698,2]
[346540891,1735061447884,-500.0,0.00013698,2]
[346540892,1735061447894,-500.0,0.00013698,2]
[346540893,1735061447904,-500.0,0.00013698,2]
[346540894,1735061447914,-500.0,0.00013698,2]
[346540895,1735061447923,-500.0,0.00013698,2]
[346540896,1735061447933,-500.0,0.00013698,2]
[346540897,1735061447942,-500.0,0.00013698,2]
[346540898,1735061447952,-500.0,0.00013698,2]
[346540899,1735061447962,-500.0,0.00013698,2]
[346540900,1735061447971,-1427.713441,0.00013698,2]
[346540901,1735061447981,-1427.713441,0.00013698,2]
[346540902,1735061447990,-1427.713441,0.00013698,2]
[346540903,1735061448000,-500.0,0.00013698,2]
[346540904,1735061448010,-1427.713441,0.00013698,2]
[346540905,1735061448020,-1427.713441,0.00013698,2]
[346540906,1735061448030,-1427.713441,0.00013698,2]
[346540907,1735061448040,-1427.713441,0.00013698,2]
[346540908,1735061448049,-500.0,0.00013698,2]
[346540909,1735061448059,-1427.713441,0.00013698,2]
[346540910,1735061448069,-624.16598017,0.00013698,2]
[346540911,1735061448079,-1427.713441,0.00013698,2]
[346540912,1735061448088,-1427.713441,0.00013698,2]
[346540913,1735061448098,-1427.713441,0.00013698,2]
[346540914,1735061448108,-500.0,0.00013698,2]
[346540915,1735061448118,-500.0,0.00013698,2]
[346540916,1735061448128,-1427.713441,0.00013698,2]
[346540917,1735061448137,-1427.713441,0.00013698,2]
[346540918,1735061448147,-1427.713441,0.00013698,2]
[346540919,1735061448157,-500.0,0.00013698,2]
[346540920,1735061448167,-1427.713441,0.00013698,2]
[346540921,1735061448176,-1427.713441,0.00013698,2]
[346540922,1735061448186,-1427.713441,0.00013698,2]
[346540923,1735061448196,-1427.713441,0.00013698,2]
[346540924,1735061448208,-1427.713441,0.00013698,2]
[346540925,1735061448218,-1427.713434,0.00013698,2]
[346540926,1735061448227,-500.0,0.00013698,2]
[346540927,1735061448237,-500.0,0.00013698,2]
[346540928,1735061448247,-500.0,0.00013698,2]
[346540929,1735061448257,-500.0,0.00013698,2]
[346540930,1735061448271,-500.0,0.00013698,2]
[346540931,1735061448281,-500.0,0.00013698,2]
[346540932,1735061448291,-153.840585,0.00013698,2]
[346540933,1735061448301,-500.0,0.00013698,2]
[346540934,1735061448313,-500.0,0.00013698,2]
[346540935,1735061448322,-500.0,0.00013698,2]
[346540936,1735061448332,-500.0,0.00013698,2]
[346540937,1735061448342,-500.0,0.00013698,2]
[346540938,1735061448352,-500.0,0.00013698,2]
[346540939,1735061448361,-500.0,0.00013698,2]
[346540940,1735061448372,-500.0,0.00013698,2]
[346540941,1735061448382,-400.738719,0.00013698,2]
[346540942,1735061448392,-400.738719,0.00013698,2]
[346540943,1735061448401,-400.738719,0.00013698,2]
[346540944,1735061448411,-400.738719,0.00013698,2]
[346540945,1735061448421,-400.738719,0.00013698,2]
[346540946,1735061448431,-400.738719,0.00013698,2]
[346540947,1735061448442,-500.0,0.00013698,2]
[346540948,1735061448452,-500.0,0.00013698,2]
[346540949,1735061448463,-400.738719,0.00013698,2]
[346540950,1735061448474,-400.738719,0.00013698,2]
[346540951,1735061448486,-400.738719,0.00013698,2]
[346540952,1735061448496,-500.0,0.00013698,2]
[346540953,1735061448506,-400.738719,0.00013698,2]
[346540954,1735061448515,-400.738719,0.00013698,2]
[346540955,1735061448528,-400.738719,0.00013698,2]
[346540956,1735061448545,-500.0,0.00013698,2]
[346540957,1735061448560,-400.738719,0.00013698,2]
[346540958,1735061448575,-400.738719,0.00013698,2]
[346540959,1735061448588,-400.738719,0.00013698,2]
[346540960,1735061448603,-400.738719,0.00013698,2]
[346540961,1735061448618,-215.60079,0.00013698,2]
[346540962,1735061448633,-215.60079,0.00013698,2]
[346540963,1735061448648,-400.738719,0.00013698,2]
[346540964,1735061448661,-500.0,0.00013698,2]
[346540965,1735061448676,-215.60079,0.00013698,2]
[346540966,1735061448689,-400.738719,0.00013698,2]
[346540967,1735061448703,-215.60079,0.00013698,2]
[346540968,1735061448717,-215.60079,0.00013698,2]
[346540969,1735061448730,-400.738719,0.00013698,2]
[346540970,1735061448743,-500.0,0.00013698,2]
[346540971,1735061448756,-400.738714,0.00013698,2]
[346540972,1735061448769,-151.0,0.00013698,2]
[346540973,1735061448787,-215.60079,0.00013698,2]
[346540974,1735061448801,-505.10605641,0.00013698,2]
[346540975,1735061448813,-215.60079,0.00013698,2]
[346540976,1735061448828,-151.0,0.00013698,2]
[346540977,1735061448839,-215.60079,0.00013698,2]
[346540978,1735061448855,-151.0,0.00013698,2]
[346540979,1735061448870,-215.60079,0.00013698,2]
[346540980,1735061448884,-151.0,0.00013698,2]
[346540981,1735061448898,-215.60079,0.00013698,2]
[346540982,1735061448912,-215.60079,0.00013698,2]
[346540983,1735061448926,-151.0,0.00013698,2]
[346540984,1735061448940,-500.0,0.00013698,2]
[346540985,1735061448952,-215.60079,0.00013698,2]
[346540986,1735061448964,-151.0,0.00013698,2]
[346540987,1735061448975,-215.60079,0.00013698,2]
[346540988,1735061448988,-151.0,0.00013698,2]
[346540989,1735061449007,-215.60079,0.00013698,2]
[346540990,1735061449022,-190.64568,0.00013698,2]
[346540991,1735061449035,-215.60079,0.00013698,2]
[346540992,1735061449047,-215.60079,0.00013698,2]
[346540993,1735061449059,-215.60079,0.00013698,2]
[346540994,1735061449073,-215.60079,0.00013698,2]
[346540995,1735061449087,-215.60079,0.00013698,2]
[346540996,1735061449099,-215.600793,0.00013698,2]
[346540997,1735061449111,-500.0,0.00013698,2]
[346540998,1735061449123,-500.0,0.00013698,2]
[346540999,1735061449136,-500.0,0.00013698,2]
[346541000,1735061449152,-500.0,0.00013698,2]
[346541001,1735061449165,-500.0,0.00013698,2]
[346541002,1735061449178,-500.0,0.00013698,2]
[346541003,1735061449192,-500.0,0.00013698,2]
[346541004,1735061449207,-500.0,0.00013698,2]
[346541005,1735061449221,-500.0,0.00013698,2]
[346541006,1735061449238,-500.0,0.00013698,2]
[346541007,1735061449250,-500.0,0.00013698,2]
[346541008,1735061449263,-899.54,0.00013698,2]
[346541009,1735061449279,-587.87,0.00013698,2]
[346541010,1735061449291,-500.0,0.00013698,2]
[346541011,1735061449304,-500.0,0.00013698,2]
[346541012,1735061449317,-500.0,0.00013698,2]
[346541013,1735061449330,-500.0,0.00013698,2]
[346541014,1735061449342,-500.0,0.00013698,2]
[346541015,1735061449354,-500.0,0.00013698,2]
[346541016,1735061449367,-861.01,0.00013698,2]
[346541017,1735061449378,-2654.61,0.00013698,2]
[346541018,1735061449391,-501.43043041,0.00013698,2]
[346541019,1735061449404,-1021.246447,0.00013698,2]
[346541020,1735061449416,-1021.246447,0.00013698,2]
[346541021,1735061449428,-1021.246447,0.00013698,2]
[346541022,1735061449440,-1021.246447,0.00013698,2]
[346541023,1735061449452,-1021.246447,0.00013698,2]
[346541024,1735061449467,-1021.246447,0.00013698,2]
[346541025,1735061449479,-500.0,0.00013698,2]
[346541026,1735061449491,-500.0,0.00013698,2]
[346541027,1735061449503,-1021.246447,0.00013698,2]
[346541028,1735061449515,-500.0,0.00013698,2]
[346541029,1735061449526,-1021.246447,0.00013698,2]
[346541030,1735061449538,-500.0,0.00013698,2]